bitfinex-derivatives/quotes_BNBF0:USTF0_20230831
["timestamp","ask_amount","ask_price","bid_price","bid_amount"]
[1693440389591,0.07333082,223.57,223.31,0.82220749]
[1693440389901,0.07333082,223.57,223.32,0.82221674]
[1693440390199,0.07333082,223.56,223.33,0.82221674]
[1693440390395,0.07333082,223.57,223.31,0.82221674]
[1693440390599,0.07333082,223.57,223.32,0.8222146]
[1693440390896,0.07333082,223.57,223.33,0.8222146]
[1693440391199,0.07333082,223.57,223.29,0.07326734]
[1693440391397,0.07333082,223.57,223.3,0.82221295]
[1693440391593,0.07333082,223.58,223.3,0.82221295]
[1693440391793,0.07333082,223.58,223.31,0.82221295]
[1693440391997,0.07333082,223.58,223.32,0.82221295]
[1693440392194,0.07333082,223.58,223.33,0.82221295]
[1693440392393,0.07333082,223.58,223.27,0.07326734]
[1693440392592,0.07333082,223.59,223.28,0.82221078]
[1693440394598,0.14666165,223.62,223.28,0.82221078]
[1693440394599,0.07333082,223.6,223.28,0.82221078]
[1693440395200,0.07333082,223.6,223.29,0.82221078]
[1693440395395,0.07333082,223.6,223.3,0.82221078]
[1693440395599,0.07333082,223.6,223.31,0.82221078]
[1693440395795,0.07333082,223.6,223.32,0.82221078]
[1693440396001,0.07333082,223.6,223.33,0.82221078]
[1693440396301,0.07333082,223.6,223.26,0.07326734]
[1693440396502,0.07333082,223.6,223.27,0.82220592]
[1693440397603,0.07333082,223.61,223.27,0.82220592]
[1693440398303,0.07333082,223.6,223.27,0.82220592]
[1693440398603,0.07333082,223.6,223.28,0.82220592]
[1693440398803,0.07333082,223.6,223.29,0.82220592]
[1693440399004,0.07333082,223.6,223.3,0.82220592]
[1693440399202,0.07333082,223.6,223.24,0.07326734]
[1693440399203,0.07333082,223.6,223.25,0.82220592]
[1693440399403,0.07333082,223.6,223.26,0.82220592]
[1693440399605,0.07333082,223.6,223.27,0.82220592]
[1693440399803,0.07333082,223.6,223.28,0.82220592]
[1693440400007,0.07333082,223.6,223.25,0.82220592]
[1693440400204,0.07333082,223.6,223.26,0.82220592]
[1693440400402,0.07333082,223.6,223.27,0.82220592]
[1693440400604,0.07333082,223.6,223.25,0.82220592]
[1693440400804,0.07333082,223.6,223.26,0.82220592]
[1693440401004,0.07333082,223.6,223.27,0.82220592]
[1693440401203,0.07333082,223.6,223.28,0.82220592]
[1693440401405,0.07333082,223.6,223.24,0.82220592]
[1693440401600,0.07333082,223.6,223.25,0.82220592]
[1693440401799,0.07333082,223.61,223.26,0.82220592]
[1693440402003,0.07333082,223.61,223.25,0.82220592]
[1693440402204,0.07333082,223.61,223.26,0.82220592]
[1693440402405,0.07333082,223.61,223.27,0.82220592]
[1693440402605,0.07333082,223.61,223.25,0.82220592]
[1693440402806,0.07333082,223.61,223.26,0.82220592]
[1693440403004,0.07333082,223.61,223.27,0.82220592]
[1693440403310,0.07333082,223.61,223.28,0.82220592]
[1693440403508,0.07333082,223.61,223.25,0.82220592]
[1693440403702,0.07333082,223.61,223.26,0.82220592]
[1693440403906,0.07333082,223.61,223.27,0.82220592]
[1693440404206,0.07333082,223.61,223.24,0.07326734]
[1693440404207,0.07333082,223.61,223.28,0.82220592]
[1693440404407,0.07333082,223.61,223.29,0.82220592]
[1693440404707,0.07333082,223.61,223.3,0.82220592]
[1693440404907,0.07333082,223.61,223.25,0.82220592]
[1693440405208,0.07333082,223.61,223.26,0.82220592]
[1693440405408,0.07333082,223.61,223.27,0.82220592]
[1693440405607,0.07333082,223.61,223.25,0.82220592]
[1693440405808,0.07333082,223.61,223.26,0.82220592]
[1693440406010,0.07333082,223.61,223.27,0.82220592]
[1693440406308,0.07333082,223.61,223.28,0.82220592]
[1693440406509,0.07333082,223.61,223.29,0.82220592]
[1693440406708,0.07333082,223.61,223.3,0.82220592]
[1693440406909,0.07333082,223.61,223.25,0.82220592]
[1693440407111,0.07333082,223.61,223.26,0.82220592]
[1693440407303,0.07333082,223.61,223.27,0.82220592]
[1693440407511,0.07333082,223.61,223.28,0.82220592]
[1693440407710,0.07333082,223.61,223.25,0.82220592]
[1693440407912,0.07333082,223.61,223.26,0.82220592]
[1693440408113,0.07333082,223.61,223.27,0.82220592]
[1693440408315,0.07333082,223.61,223.25,0.82220592]
[1693440408515,0.07333082,223.61,223.24,0.07326734]
[1693440408516,0.07333082,223.61,223.26,0.82220592]
[1693440408712,0.07333082,223.61,223.24,0.07326734]
[1693440408713,0.07333082,223.61,223.25,0.82220592]
[1693440408909,0.07333082,223.61,223.26,0.82220592]
[1693440409112,0.07333082,223.61,223.27,0.82220592]
[1693440409308,0.07333082,223.61,223.28,0.82220592]
[1693440409611,0.07333082,223.61,223.29,0.82220592]
[1693440409808,0.07333082,223.61,223.3,0.82220592]
[1693440410013,0.07333082,223.61,223.25,0.82220592]
[1693440411419,0.07333082,223.6,223.25,0.82220592]
[1693440412517,0.07333082,223.6,223.25,0.89547326]
[1693440412718,0.07333082,223.6,223.26,0.82220592]
[1693440414521,0.07333082,223.59,223.26,0.82220592]
[1693440415616,0.07333082,223.59,223.26,0.89547326]
[1693440415822,0.07333082,223.59,223.27,0.82220592]
[1693440416623,0.07333082,223.58,223.27,0.82220592]
[1693440418524,0.07333082,223.58,223.27,0.89547326]
[1693440418719,0.07333082,223.58,223.28,0.82220592]
[1693440418922,0.07333082,223.57,223.28,0.82220592]
[1693440419517,0.07333082,223.56,223.27,0.82220592]
[1693440419819,0.07333082,223.56,223.28,0.82220592]
[1693440420124,0.07333082,223.56,223.29,0.82220592]
[1693440420327,0.07333082,223.56,223.3,0.82220592]
[1693440420526,0.07333082,223.56,223.31,0.82220592]
[1693440420726,0.07333082,223.56,223.32,0.82220592]
[1693440420921,0.07333082,223.56,223.28,0.82220592]
[1693440421631,0.07333082,223.55,223.28,0.89547326]
[1693440421927,0.07333082,223.55,223.29,0.82220592]
[1693440422524,0.07333082,223.54,223.29,0.82220592]
[1693440423526,0.07333082,223.52,223.29,0.89547326]
[1693440423729,0.07333082,223.52,223.3,0.82220592]
[1693440424428,0.07333082,223.52,223.3,0.89547326]
[1693440424629,0.07333082,223.52,223.31,0.82220592]
[1693440425131,0.07333082,223.52,223.29,0.07326734]
[1693440425332,0.07333082,223.52,223.3,0.82226834]
[1693440432838,0.07333082,223.53,223.3,0.82226834]
[1693440437936,0.07333082,223.52,223.3,0.82226834]
[1693440439540,0.07333082,223.53,223.3,0.82226834]
[1693440441142,0.97774438,223.61,223.3,0.82226834]
[1693440441143,0.07333082,223.52,223.3,0.82226834]
[1693440441338,0.07333082,223.52,223.31,0.82226834]
[1693440441642,0.07333082,223.52,223.28,0.07326734]
[1693440441841,0.07333082,223.52,223.29,0.8222679]
[1693440442037,0.07333082,223.52,223.28,0.07326734]
[1693440445944,0.07333082,223.52,223.29,0.82226232]
[1693440446544,0.07333082,223.52,223.29,0.89552966]
[1693440446745,0.07333082,223.52,223.3,0.82226232]
[1693440451447,0.07333082,223.51,223.3,0.82226232]
[1693440453650,0.07333082,223.51,223.3,0.89552966]
[1693440453851,0.07333082,223.51,223.31,0.82226232]
[1693440459253,0.07333082,223.5,223.29,0.07326734]
[1693440459449,0.07333082,223.5,223.3,0.82230877]
[1693440461953,0.07333082,223.5,223.28,0.07326734]
[1693440462156,0.07333082,223.5,223.29,0.82232447]
[1693440465959,0.07333082,223.51,223.29,0.82232447]
[1693440466259,0.07333082,223.5,223.29,0.82232447]
[1693440466959,0.07333082,223.51,223.29,0.82232447]
[1693440467154,0.07333082,223.5,223.29,0.82232447]
[1693440471454,0.07333082,223.5,223.28,0.82232447]
[1693440471655,0.07333082,223.49,223.29,0.82235891]
[1693440471860,0.07333082,223.5,223.28,0.82235891]
[1693440472061,0.07333082,223.5,223.29,0.82236066]
[1693440472261,0.07333082,223.5,223.28,0.82236066]
[1693440472456,0.07333082,223.5,223.29,0.82235934]
[1693440472659,0.07333082,223.5,223.27,0.07326734]
[1693440472861,0.07333082,223.5,223.28,0.82235821]
[1693440473062,0.07333082,223.5,223.27,0.89562555]
[1693440473257,0.07333082,223.5,223.28,0.82235821]
[1693440474162,0.07333082,223.5,223.29,0.82235821]
[1693440474362,0.07333082,223.5,223.27,0.82235821]
[1693440474565,0.07333082,223.5,223.28,0.82235452]
[1693440474764,0.07333082,223.5,223.27,0.89562186]
[1693440474959,0.07333082,223.5,223.28,0.82235452]
[1693440475360,0.07333082,223.5,223.29,0.82235452]
[1693440475563,0.07333082,223.5,223.26,0.07326734]
[1693440475860,0.07333082,223.5,223.27,0.89561779]
[1693440476065,0.07333082,223.5,223.28,0.82235045]
[1693440476565,0.07333082,223.5,223.27,0.07326734]
[1693440476766,0.07333082,223.47,223.2,0.07326734]
[1693440476965,0.07333082,223.47,223.21,0.89584101]
[1693440477265,0.07333082,223.47,223.22,0.82257367]
[1693440477463,0.07333082,223.47,223.21,0.82257367]
[1693440477662,0.07333082,223.47,223.22,0.82257367]
[1693440477865,0.07333082,223.48,223.21,0.82257367]
[1693440478059,0.07333082,223.48,223.19,0.07326734]
[1693440478060,0.07333082,223.48,223.22,0.82257367]
[1693440478259,0.07333082,223.48,223.23,0.82257367]
[1693440478464,0.07333082,223.48,223.24,0.82257367]
[1693440478664,0.07333082,223.48,223.19,0.07326734]
[1693440478865,0.07333082,223.48,223.2,0.82256985]
[1693440479367,0.07333082,223.48,223.21,0.82256985]
[1693440479666,0.07333082,223.48,223.22,0.82256985]
[1693440479866,0.07333082,223.48,223.23,0.82256985]
[1693440480070,0.07333082,223.48,223.19,0.82256985]
[1693440480368,0.07333082,223.48,223.2,0.82256985]
[1693440480569,0.07333082,223.48,223.21,0.82256985]
[1693440480764,0.07333082,223.48,223.2,0.82256985]
[1693440480964,0.07333082,223.49,223.21,0.82256985]
[1693440481167,0.07333082,223.49,223.22,0.82256985]
[1693440481364,0.14666165,223.51,223.23,0.82256985]
[1693440481365,0.07333082,223.48,223.23,0.82256985]
[1693440481561,0.07333082,223.48,223.19,0.82256985]
[1693440481865,0.07333082,223.48,223.2,0.82256985]
[1693440482066,0.07333082,223.48,223.18,0.07326734]
[1693440482067,0.07333082,223.48,223.21,0.82256985]
[1693440482367,0.07333082,223.48,223.22,0.82256985]
[1693440482566,0.07333082,223.49,223.23,0.82256985]
[1693440482766,0.07333082,223.49,223.24,0.82256985]
[1693440482960,0.07333082,223.49,223.17,0.07326734]
[1693440483159,0.07333082,223.49,223.18,0.82256569]
[1693440484666,0.48887219,223.54,223.18,0.82256569]
[1693440484667,0.07333082,223.5,223.18,0.82256569]
[1693440484866,0.07333082,223.5,223.17,0.82256569]
[1693440485069,0.07333082,223.48,223.18,0.82256569]
[1693440485368,0.07333082,223.47,223.19,0.82256569]
[1693440485559,2.4443609,223.63,223.13,0.07326734]
[1693440485560,0.07333082,223.48,223.2,0.82256569]
[1693440485763,0.07333082,223.48,223.21,0.82256569]
[1693440485964,0.07333082,223.48,223.13,0.07326734]
[1693440486168,0.07333082,223.48,223.14,0.82266544]
[1693440486667,0.07333082,223.48,223.15,0.82266544]
[1693440486863,0.07333082,223.48,223.12,0.07326734]
[1693440486864,0.07333082,223.48,223.16,0.82266544]
[1693440487070,0.07333082,223.48,223.17,0.82266544]
[1693440487265,0.07333082,223.48,223.13,0.82266544]
[1693440487470,0.07333082,223.48,223.14,0.82266544]
[1693440487666,0.07333082,223.49,223.15,0.82266544]
[1693440487870,0.07333082,223.49,223.16,0.82266544]
[1693440488066,0.07333082,223.49,223.17,0.82266544]
[1693440488267,0.07333082,223.49,223.18,0.82266544]
[1693440488466,0.07333082,223.49,223.19,0.82266544]
[1693440488669,0.07333082,223.5,223.12,0.82266544]
[1693440488871,0.07333082,223.5,223.13,0.82266544]
[1693440489072,0.07333082,223.5,223.14,0.82266544]
[1693440489271,0.07333082,223.5,223.15,0.82266544]
[1693440489571,0.07333082,223.5,223.16,0.82266544]
[1693440489771,0.07333082,223.5,223.17,0.82266544]
[1693440489969,0.07333082,223.5,223.18,0.82266544]
[1693440490170,0.07333082,223.5,223.19,0.82266544]
[1693440490365,0.07333082,223.5,223.2,0.82266544]
[1693440490570,0.07333082,223.5,223.11,0.82266544]
[1693440490872,0.07333082,223.5,223.12,0.82266544]
[1693440491073,0.07333082,223.5,223.13,0.82266544]
[1693440491269,0.07333082,223.5,223.14,0.82266544]
[1693440491468,0.07333082,223.5,223.15,0.82266544]
[1693440491668,0.8210358,223.49,223.16,0.82266544]
[1693440491968,0.14666165,223.53,223.05,0.07326734]
[1693440491969,0.07333082,223.45,223.05,0.07326734]
[1693440492173,0.07333082,223.45,223.06,0.82285906]
[1693440492473,6.8442106,223.68,223.06,0.82285906]
[1693440492474,0.07333082,223.46,223.06,0.82285906]
[1693440492674,0.07333082,223.46,223.07,0.82285906]
[1693440492868,0.07333082,223.46,223.04,0.07326734]
[1693440492869,0.07333082,223.46,223.08,0.82285906]
[1693440493069,0.07333082,223.46,223.09,0.82285906]
[1693440493273,0.07333082,223.46,223.1,0.82285906]
[1693440493469,0.07333082,223.46,223.11,0.82285906]
[1693440493673,0.07333082,223.46,222.89,0.48844896]
[1693440493674,0.07333082,223.47,223.12,0.82285906]
[1693440493875,0.07333082,223.47,223.13,0.82285906]
[1693440494075,0.07333082,223.47,223.14,0.82285906]
[1693440494276,0.07333082,223.47,223.15,0.82285906]
[1693440494576,0.97774438,223.55,223.16,0.82285906]
[1693440494577,0.07333082,223.48,223.16,0.82285906]
[1693440494877,0.07333082,223.48,223.02,0.07326734]
[1693440495073,0.07333082,223.48,223.03,0.82285219]
[1693440496478,0.07333082,223.49,223.03,0.82285219]
[1693440496777,0.82099553,223.48,223.04,0.82285219]
[1693440496976,0.82099553,223.48,223.01,0.07326734]
[1693440496977,0.82099553,223.48,223.05,0.82285219]
[1693440497177,0.82099553,223.48,223.06,0.82285219]
[1693440497373,0.82099553,223.48,223.02,0.82285219]
[1693440497679,0.82099553,223.48,223.03,0.82285219]
[1693440497873,0.82099553,223.48,223.04,0.82285219]
[1693440498073,0.82099553,223.48,223.05,0.82285219]
[1693440498278,0.82099553,223.48,223.06,0.82285219]
[1693440498475,0.82099553,223.48,223.07,0.82285219]
[1693440498678,0.82099553,223.48,223.08,0.82285219]
[1693440498879,0.82099553,223.48,223.09,0.82285219]
[1693440499081,0.82099553,223.48,223.1,0.82285219]
[1693440499282,0.82099553,223.48,223.11,0.82285219]
[1693440499475,0.82099553,223.48,223.12,0.82285219]
[1693440499675,0.07333082,223.49,223.13,0.82285219]
[1693440499875,0.07333082,223.49,223.14,0.82285219]
[1693440500083,0.07333082,223.49,223.15,0.82285219]
[1693440500381,0.07333082,223.49,223.16,0.82285219]
[1693440500582,0.07333082,223.49,223.02,0.82285219]
[1693440500782,0.07333082,223.49,223.03,0.82284674]
[1693440500976,0.07333082,223.49,223.04,0.82284674]
[1693440501175,0.07333082,223.49,223.05,0.82284674]
[1693440501376,0.07333082,223.49,223.06,0.82284674]
[1693440501683,0.07333082,223.49,223.07,0.82284674]
[1693440501877,0.07333082,223.49,223.08,0.82284674]
[1693440502182,0.07333082,223.49,223.09,0.82284674]
[1693440502383,0.07333082,223.49,223.1,0.82284674]
[1693440502582,0.07333082,223.49,223.11,0.82284674]
[1693440502783,0.07333082,223.49,223.12,0.82284674]
[1693440502983,0.07333082,223.49,223.13,0.82284674]
[1693440503184,0.07333082,223.49,223.14,0.82284674]
[1693440503384,0.07333082,223.49,223.15,0.82284674]
[1693440503588,0.07333082,223.49,223.01,0.07326734]
[1693440503589,0.07333082,223.49,223.16,0.82284674]
[1693440503787,0.07333082,223.49,223.01,0.07326734]
[1693440503981,0.07333082,223.49,223.02,0.89611354]
[1693440504282,0.07333082,223.49,223.03,0.8228462]
[1693440504787,0.07333082,223.48,223.03,0.8228462]
[1693440505883,0.07333082,223.47,223.03,0.89611354]
[1693440506087,0.07333082,223.47,223.04,0.8228462]
[1693440507893,0.07333082,223.46,223.04,0.89611354]
[1693440508191,0.07333082,223.46,223.05,0.8228462]
[1693440508887,0.07333082,223.45,223.05,0.89611354]
[1693440509092,0.07333082,223.45,223.06,0.8228462]
[1693440509891,0.07333082,223.44,223.06,0.89611354]
[1693440510188,0.07333082,223.44,223.07,0.8228462]
[1693440511794,0.07333082,223.43,223.07,0.8228462]
[1693440512792,0.07333082,223.42,223.07,0.8228462]
[1693440512989,0.07333082,223.41,223.08,0.8228462]
[1693440513294,0.07333082,223.41,223.09,0.8228462]
[1693440513491,0.07333082,223.41,223.1,0.8228462]
[1693440513687,0.07333082,223.41,223.11,0.8228462]
[1693440513884,2.4443609,223.54,223.12,0.8228462]
[1693440513885,0.07333082,223.4,223.12,0.8228462]
[1693440514086,0.07333082,223.4,223.05,0.07326734]
[1693440514087,0.07333082,223.41,223.13,0.8228462]
[1693440514292,0.07333082,223.4,223.05,0.07326734]
[1693440514494,0.07333082,223.4,223.06,0.82292826]
[1693440514690,0.07333082,223.41,223.06,0.82292826]
[1693440517495,0.07333082,223.4,223.06,0.82292826]
[1693440518595,0.07333082,223.4,223.06,0.8961956]
[1693440518796,0.07333082,223.4,223.07,0.82292826]
[1693440519096,0.07333082,223.39,223.07,0.82292826]
[1693440519298,0.07333082,223.31,222.97,0.07326734]
[1693440519494,0.07333082,223.31,222.98,0.82329649]
[1693440519695,0.07333082,223.3,222.98,0.82329649]
[1693440519895,0.07333082,223.31,222.98,0.82329649]
[1693440520090,0.07333082,223.31,222.99,0.82329649]
[1693440520297,0.07333082,223.31,222.95,0.82329649]
[1693440520499,0.07333082,223.3,222.96,0.82329649]
[1693440520697,0.07333082,223.32,222.97,0.82329649]
[1693440520991,0.07333082,223.32,222.98,0.82329649]
[1693440521196,0.07333082,223.32,222.93,0.82329649]
[1693440521399,0.07333082,223.32,222.94,0.82329649]
[1693440521599,0.07333082,223.33,222.95,0.82329649]
[1693440521899,0.07333082,223.33,222.91,0.07326734]
[1693440521900,0.07333082,223.33,222.96,0.82329649]
[1693440522197,0.07333082,223.33,222.97,0.82329649]
[1693440522398,0.07333082,223.33,222.92,0.82329649]
[1693440522699,0.07333082,223.34,222.93,0.82329649]
[1693440522900,0.07333082,223.34,222.94,0.82329649]
[1693440523099,0.07333082,223.34,222.95,0.82329649]
[1693440523299,0.07333082,223.34,222.96,0.82329649]
[1693440523496,0.07333082,223.34,222.97,0.82329649]
[1693440523698,0.07333082,223.35,222.98,0.82329649]
[1693440523998,0.07333082,223.35,222.99,0.82329649]
[1693440524198,0.07333082,223.35,223.0,0.82329649]
[1693440524399,0.07333082,223.35,223.01,0.82329649]
[1693440524593,0.97774438,223.43,222.83,0.14653468]
[1693440524594,0.07333082,223.36,223.02,0.82329649]
[1693440524796,0.81990868,223.35,223.03,0.82329649]
[1693440525000,0.81990868,223.35,222.89,0.07326734]
[1693440525305,0.81990868,223.35,222.9,0.82333482]
[1693440526199,0.07333082,223.36,222.9,0.82333482]
[1693440526502,0.07333082,223.37,222.9,0.89660216]
[1693440526701,0.81993007,223.36,222.91,0.82333482]
[1693440526901,0.81993007,223.36,222.92,0.82333482]
[1693440527095,0.81993007,223.36,222.93,0.82333482]
[1693440527295,0.81993007,223.36,222.94,0.82333482]
[1693440527601,0.81993007,223.36,222.95,0.82333482]
[1693440527901,0.81993007,223.36,222.96,0.82333482]
[1693440528096,0.81993007,223.36,222.97,0.82333482]
[1693440528299,0.81993007,223.36,222.98,0.82333482]
[1693440528501,0.81993007,223.36,222.99,0.82333482]
[1693440528703,0.81993007,223.36,222.9,0.82333482]
[1693440528901,0.07333082,223.38,222.91,0.82333482]
[1693440529101,0.8199028,223.37,222.92,0.82333482]
[1693440529297,0.8199028,223.37,222.9,0.82333482]
[1693440529501,0.8199028,223.37,222.91,0.82333482]
[1693440529801,0.8199028,223.37,222.92,0.82333482]
[1693440530002,0.8199028,223.37,222.93,0.82333482]
[1693440530203,0.8199028,223.37,222.94,0.82333482]
[1693440530396,0.8199028,223.37,222.95,0.82333482]
[1693440530600,0.8199028,223.37,222.96,0.82333482]
[1693440530800,0.8199028,223.37,222.97,0.82333482]
[1693440531001,0.8199028,223.37,222.98,0.82333482]
[1693440531202,0.8199028,223.37,222.99,0.82333482]
[1693440531502,0.8199028,223.37,223.0,0.82333482]
[1693440531699,0.07333082,223.39,223.01,0.82333482]
[1693440531900,0.81991395,223.38,223.02,0.82333482]
[1693440532102,0.81991395,223.38,223.03,0.82333482]
[1693440532302,0.81991395,223.38,222.9,0.82333482]
[1693440532504,0.81991395,223.38,222.91,0.82333482]
[1693440532804,0.81991395,223.38,222.89,0.07326734]
[1693440532805,0.81991395,223.38,222.92,0.82333482]
[1693440533003,0.81991395,223.38,222.89,0.07326734]
[1693440533004,0.81991395,223.38,222.93,0.82333482]
[1693440533203,0.81991395,223.38,222.94,0.82333482]
[1693440533503,0.81991395,223.38,222.95,0.82333482]
[1693440533702,0.81991395,223.38,222.96,0.82333482]
[1693440533903,0.81991395,223.38,222.97,0.82333482]
[1693440534096,0.81991395,223.38,222.98,0.82333482]
[1693440534302,0.81991395,223.38,222.99,0.82333482]
[1693440534503,0.81991395,223.38,222.9,0.82333482]
[1693440534805,0.81991395,223.38,222.91,0.82333482]
[1693440535005,0.81991395,223.38,222.89,0.82333482]
[1693440535201,0.81991395,223.38,222.9,0.82333482]
[1693440535404,0.81991395,223.38,222.91,0.82333482]
[1693440535705,0.81991395,223.38,222.92,0.82333482]
[1693440535906,0.81991395,223.38,222.93,0.82333482]
[1693440536099,0.81991395,223.38,222.94,0.82333482]
[1693440536303,0.81991395,223.38,222.89,0.82333482]
[1693440536603,0.81991395,223.38,222.89,0.89660216]
[1693440536800,0.07333082,223.43,222.93,0.07326734]
[1693440537004,0.8200545,223.42,222.94,0.82333482]
[1693440537702,0.8200545,223.42,222.94,0.89660216]
[1693440537903,0.8200545,223.42,222.95,0.82333482]
[1693440539507,0.8200545,223.42,222.95,0.89660216]
[1693440539709,0.07333082,223.43,222.96,0.82333482]
[1693440540603,0.07333082,223.43,222.96,0.89660216]
[1693440540808,0.07333082,223.43,222.97,0.82333482]
[1693440541210,0.07333082,223.43,222.96,0.82333482]
[1693440541404,0.07333082,223.43,222.97,0.82333482]
[1693440541607,0.07333082,223.43,222.98,0.82333482]
[1693440541910,0.07333082,223.43,222.99,0.82333482]
[1693440542111,0.07333082,223.43,223.0,0.82333482]
[1693440542311,0.07333082,223.43,223.01,0.82333482]
[1693440542610,0.07333082,223.43,223.02,0.82333482]
[1693440542811,0.07333082,223.43,223.03,0.82333482]
[1693440543011,0.07333082,223.43,223.04,0.82333482]
[1693440543213,0.07333082,223.42,223.05,0.82333482]
[1693440543408,0.07333082,223.42,222.97,0.82333482]
[1693440543613,0.07333082,223.42,222.98,0.82333482]
[1693440543808,0.07333082,223.42,222.99,0.82333482]
[1693440544014,0.07333082,223.42,223.0,0.82333482]
[1693440544207,0.07333082,223.42,222.98,0.82333482]
[1693440544410,0.07333082,223.42,222.99,0.82333482]
[1693440544610,0.07333082,223.41,222.97,0.89660216]
[1693440544807,0.14666165,223.44,222.98,0.82333482]
[1693440544808,0.07333082,223.42,222.98,0.82333482]
[1693440545413,0.07333082,223.41,222.98,0.82333482]
[1693440545707,0.07333082,223.41,222.98,0.89660216]
[1693440545915,0.07333082,223.41,222.99,0.82333482]
[1693440546312,0.07333082,223.4,222.98,0.82333482]
[1693440546614,0.07333082,223.4,222.99,0.82333482]
[1693440547615,0.07333082,223.39,222.98,0.89660216]
[1693440547815,0.07333082,223.39,222.99,0.82333482]
[1693440549423,0.07333082,223.39,222.99,0.89660216]
[1693440549620,0.07333082,223.38,223.0,0.82333482]
[1693440551621,0.07333082,223.38,223.0,0.89660216]
[1693440551822,0.07333082,223.38,223.01,0.82333482]
[1693440552020,0.07333082,223.37,223.01,0.82333482]
[1693440552816,0.07333082,223.37,223.01,0.89660216]
[1693440553019,0.07333082,223.37,223.02,0.82333482]
[1693440553621,0.07333082,223.36,223.02,0.82333482]
[1693440554926,0.07333082,223.37,223.02,0.82333482]
[1693440555223,0.07333082,223.36,223.02,0.82333482]
[1693440555419,0.07333082,223.37,223.02,0.82333482]
[1693440555625,0.07333082,223.36,223.02,0.82333482]
[1693440558634,0.07333082,223.36,223.02,0.89660216]
[1693440558835,0.07333082,223.36,223.03,0.82333482]
[1693440562031,0.07333082,223.35,223.03,0.82333482]
[1693440562733,0.07333082,223.35,223.03,0.89660216]
[1693440563033,0.07333082,223.35,223.04,0.82333482]
[1693440565636,0.07333082,223.34,223.04,0.82333482]
[1693440566036,0.07333082,223.34,223.04,0.89660216]
[1693440566236,0.07333082,223.34,223.05,0.82333482]
[1693440568339,0.07333082,223.34,223.05,0.89660216]
[1693440568542,0.07333082,223.34,223.06,0.89660216]
[1693440568742,0.07333082,223.34,223.07,0.82333482]
[1693440570634,0.07333082,223.33,223.07,0.89660216]
[1693440570837,0.07333082,223.33,223.08,0.82333482]
[1693440571740,0.07333082,223.31,223.09,0.07326734]
[1693440571933,0.07333082,223.32,223.1,0.82333482]
[1693440579643,0.07333082,223.31,223.08,0.07326734]
[1693440579844,0.07333082,223.31,223.09,0.82305957]
[1693440580339,0.07333082,223.31,223.1,0.82305957]
[1693440580544,0.07333082,223.31,223.08,0.07326734]
[1693440580845,0.07333082,223.31,223.09,0.82304647]
[1693440586047,0.07333082,223.31,223.08,0.07326734]
[1693440586642,0.07333082,223.31,223.07,0.07326734]
[1693440587146,0.07333082,223.31,222.66,2.4422448]
[1693440587349,0.07309764,223.31,223.08,0.0734245]
[1693440587648,0.07309764,223.31,223.07,0.0734245]
[1693440589650,0.07309764,223.31,223.08,0.0734245]
[1693440589852,0.07309764,223.31,223.09,0.8230549]
[1693440590152,0.07309764,223.31,223.1,0.8230549]
[1693440590451,0.07309764,223.31,223.07,0.0734245]
[1693440590652,0.07309764,223.31,223.08,0.8230548]
[1693440591451,0.07309764,223.31,223.08,0.8964793]
[1693440591648,0.07309764,223.31,223.09,0.8230548]
[1693440596052,0.07309764,223.3,223.09,0.8230548]
[1693440596253,0.07309764,223.31,223.09,0.8230548]
[1693440596452,0.07309764,223.3,223.09,0.8230548]
[1693440597153,0.07309764,223.3,223.07,0.0734245]
[1693440597353,0.07309764,223.3,223.08,0.82305617]
[1693440598854,0.07309764,223.3,223.08,0.89648067]
[1693440599052,0.07309764,223.3,223.09,0.82305617]
[1693440601153,0.07309764,223.31,223.09,0.82305617]
[1693440601350,0.07309764,223.3,223.09,0.82305617]
[1693440601550,0.07309764,223.31,223.09,0.82305617]
[1693440603651,0.07309764,223.3,223.09,0.82305617]
[1693440603855,0.07309764,223.3,223.07,0.0734245]
[1693440604054,0.07309764,223.3,223.08,0.8964791]
[1693440604248,0.07309764,223.3,223.09,0.8230546]
[1693440606853,0.07309764,223.3,223.08,0.8230546]
[1693440607054,0.07309764,223.3,223.09,0.8230692]
[1693440607254,0.07309764,223.3,223.07,0.0734245]
[1693440607454,0.07309764,223.3,223.08,0.82306932]
[1693440610259,0.07309764,223.3,223.08,0.89649382]
[1693440610459,0.07309764,223.3,223.09,0.82306932]
[1693440612659,0.07309764,223.29,223.09,0.82306932]
[1693440617963,2.436588,223.43,223.09,0.82306932]
[1693440618163,0.0731354,223.29,223.08,0.07346754]
[1693440618363,0.0731354,223.29,223.09,0.82306031]
[1693440624269,0.0731354,223.29,223.09,0.89652785]
[1693440624464,0.0731354,223.29,223.1,0.82306031]
[1693440624967,0.0731354,223.29,223.08,0.07346754]
[1693440625162,0.0731354,223.29,223.09,0.8230505]
[1693440627169,0.0731354,223.29,223.09,0.89651804]
[1693440627362,0.0731354,223.29,223.1,0.8230505]
[1693440642280,0.0731354,223.29,223.09,0.07346754]
[1693440645983,0.0731354,223.29,223.08,0.07346754]
[1693440646184,0.0731354,223.28,223.09,0.82308849]
[1693440649978,0.0731354,223.28,223.08,0.07346754]
[1693440656388,0.0731354,223.27,223.08,0.07346754]
[1693440657193,0.0731354,223.27,223.07,0.07346754]